fUSD/lending_fUSD_20250123
["ID","MTS","AMOUNT","RATE_DAILY","PERIOD"]
[350124973,1737643858511,-744.32,0.0001726,2]
[350124974,1737643858521,-500.0,0.0001726,2]
[350124975,1737643858531,-596.94,0.0001726,2]
[350124976,1737643858679,-500.0,0.0001726,2]
[350124977,1737643858694,-579.24,0.0001726,2]
[350124978,1737643858704,-546.62977077,0.0001726,2]
[350124979,1737643858713,-500.0,0.0001726,2]
[350124980,1737643858722,-500.0,0.0001726,2]
[350124981,1737643858732,-500.0,0.0001726,2]
[350124982,1737643858741,-641.61,0.0001726,2]
[350124983,1737643858755,-341.35183389,0.0001726,2]
[350124984,1737643858764,-500.0,0.0001726,2]
[350124985,1737643858774,-500.0,0.0001726,2]
[350124986,1737643858783,-500.0,0.0001726,2]
[350124987,1737643858794,-500.0,0.0001726,2]
[350124988,1737643858803,-500.0,0.0001726,2]
[350124989,1737643858813,-500.0,0.0001726,2]
[350124990,1737643858823,-679.49,0.0001726,2]
[350124991,1737643858832,-500.0,0.0001726,2]
[350124992,1737643858843,-500.0,0.0001726,2]
[350124993,1737643858853,-622.88,0.0001726,2]
[350124994,1737643858865,-500.0,0.0001726,2]
[350124995,1737643858874,-500.0,0.0001726,2]
[350124996,1737643858883,-500.0,0.0001726,2]
[350124997,1737643858893,-511.25,0.0001726,2]
[350124998,1737643858902,-799.54,0.0001726,2]
[350124999,1737643858912,-500.0,0.0001726,2]
[350125000,1737643858923,-500.0,0.0001726,2]
[350125001,1737643858934,-500.0,0.0001726,2]
[350125002,1737643858943,-821.11,0.0001726,2]
[350125003,1737643858953,-569.5,0.0001726,2]
[350125004,1737643858963,-497.76377883,0.0001726,2]
[350125005,1737643858972,-698.74,0.0001726,2]
[350125006,1737643858981,-500.0,0.0001726,2]
[350125007,1737643858990,-768.48,0.0001726,2]
[350125008,1737643858999,-500.0,0.0001726,2]
[350125009,1737643859009,-500.0,0.0001726,2]
[350125010,1737643859018,-500.0,0.0001726,2]
[350125011,1737643859027,-2347.43,0.0001726,2]
[350125012,1737643859036,-901.23,0.0001726,2]
[350125013,1737643859046,-500.0,0.0001726,2]
[350125014,1737643859055,-500.0,0.0001726,2]
[350125015,1737643859064,-500.0,0.0001726,2]
[350125016,1737643859073,-500.0,0.0001726,2]
[350125017,1737643859083,-830.91,0.0001726,2]
[350125018,1737643859092,-500.0,0.0001726,2]
[350125019,1737643859102,-500.0,0.0001726,2]
[350125020,1737643859113,-766.14,0.0001726,2]
[350125021,1737643859123,-1316.3,0.0001726,2]
[350125022,1737643859132,-500.0,0.0001726,2]
[350125023,1737643859141,-1012.01,0.0001726,2]
[350125024,1737643859150,-500.0,0.0001726,2]
[350125025,1737643859159,-500.0,0.0001726,2]
[350125026,1737643859169,-963.15,0.0001726,2]
[350125027,1737643859179,-2938.45,0.0001726,2]
[350125028,1737643859188,-500.0,0.0001726,2]
[350125029,1737643859197,-500.0,0.0001726,2]
[350125030,1737643859207,-500.0,0.0001726,2]
[350125031,1737643859217,-500.0,0.0001726,2]
[350125032,1737643859226,-500.0,0.0001726,2]
[350125033,1737643859236,-500.0,0.0001726,2]
[350125034,1737643859245,-1127.34,0.0001726,2]
[350125035,1737643859255,-948.15,0.0001726,2]
[350125036,1737643859265,-500.0,0.0001726,2]
[350125037,1737643859274,-481.52771057,0.0001726,2]
[350125038,1737643859283,-1223.71,0.0001726,2]
[350125039,1737643859292,-500.0,0.0001726,2]
[350125040,1737643859302,-3935.14,0.0001726,2]
[350125041,1737643859312,-500.0,0.0001726,2]
[350125042,1737643859322,-812.59,0.0001726,2]
[350125043,1737643859332,-500.0,0.0001726,2]
[350125044,1737643859341,-500.0,0.0001726,2]
[350125045,1737643859350,-2339.7,0.0001726,2]
[350125046,1737643859360,-1653.76,0.0001726,2]
[350125047,1737643859369,-960.64,0.0001726,2]
[350125048,1737643859378,-838.97,0.0001726,2]
[350125049,1737643859388,-500.0,0.0001726,2]
[350125050,1737643859398,-2151.62,0.0001726,2]
[350125051,1737643859407,-1009.87,0.0001726,2]
[350125052,1737643859416,-695.81,0.0001726,2]
[350125053,1737643859425,-500.0,0.0001726,2]
[350125054,1737643859435,-1277.74,0.0001726,2]
[350125055,1737643859444,-500.0,0.0001726,2]
[350125056,1737643859453,-500.0,0.0001726,2]
[350125057,1737643859463,-1117.02,0.0001726,2]
[350125058,1737643859472,-500.0,0.0001726,2]
[350125059,1737643859482,-500.0,0.0001726,2]
[350125060,1737643859492,-684.15,0.0001726,2]
[350125061,1737643859502,-886.93,0.0001726,2]
[350125062,1737643859512,-858.47,0.0001726,2]
[350125063,1737643859522,-500.0,0.0001726,2]
[350125064,1737643859531,-500.0,0.0001726,2]
[350125065,1737643859541,-952.26,0.0001726,2]
[350125066,1737643859550,-500.0,0.0001726,2]
[350125067,1737643859559,-577.78,0.0001726,2]
[350125068,1737643859570,-608.72,0.0001726,2]
[350125069,1737643859580,-2083.49,0.0001726,2]
[350125070,1737643859590,-500.0,0.0001726,2]
[350125071,1737643859599,-500.0,0.0001726,2]
[350125072,1737643859612,-3487.11,0.0001726,2]
[350125073,1737643859621,-2271.23,0.0001726,2]
[350125074,1737643859631,-2108.97,0.0001726,2]
[350125075,1737643859640,-500.0,0.0001726,2]
[350125076,1737643859649,-2313.46,0.0001726,2]
[350125077,1737643859659,-338.23453748,0.0001726,2]
[350125078,1737643859669,-500.0,0.0001726,2]
[350125079,1737643859679,-500.0,0.0001726,2]
[350125080,1737643859688,-1779.58,0.0001726,2]
[350125081,1737643859704,-551.15136615,0.0001726,2]
[350125082,1737643859713,-1204.66,0.0001726,2]
[350125083,1737643859723,-936.89,0.0001726,2]
[350125084,1737643859732,-500.0,0.0001726,2]
[350125085,1737643859741,-699.83,0.0001726,2]
[350125086,1737643859752,-500.0,0.0001726,2]
[350125087,1737643859766,-500.0,0.0001726,2]
[350125088,1737643859775,-980.86,0.0001726,2]
[350125089,1737643859785,-1983.91,0.0001726,2]
[350125090,1737643859795,-1040.51,0.0001726,2]
[350125091,1737643859804,-2085.65,0.0001726,2]
[350125092,1737643859813,-500.0,0.0001726,2]
[350125093,1737643859822,-944.5,0.0001726,2]
[350125094,1737643859832,-1252.36,0.0001726,2]
[350125095,1737643859842,-500.0,0.0001726,2]
[350125096,1737643859851,-825.5,0.0001726,2]
[350125097,1737643859862,-500.0,0.0001726,2]
[350125098,1737643859872,-500.0,0.0001726,2]
[350125099,1737643859881,-500.0,0.0001726,2]
[350125100,1737643859891,-527.59,0.0001726,2]
[350125101,1737643859901,-1618.86,0.0001726,2]
[350125102,1737643859911,-500.0,0.0001726,2]
[350125103,1737643859920,-500.0,0.0001726,2]
[350125104,1737643859930,-500.0,0.0001726,2]
[350125105,1737643859940,-694.26,0.0001726,2]
[350125106,1737643859950,-645.22,0.0001726,2]
[350125107,1737643859959,-2343.74,0.0001726,2]
[350125108,1737643859968,-500.0,0.0001726,2]
[350125109,1737643859977,-500.0,0.0001726,2]
[350125110,1737643859987,-1723.16,0.0001726,2]
[350125111,1737643859995,-1297.71,0.0001726,2]
[350125112,1737643860006,-920.63,0.0001726,2]
[350125113,1737643860015,-1214.54,0.0001726,2]
[350125114,1737643860024,-500.0,0.0001726,2]
[350125115,1737643860034,-500.0,0.0001726,2]
[350125116,1737643860044,-500.0,0.0001726,2]
[350125117,1737643860055,-1000.0,0.0001726,2]
[350125118,1737643860065,-2037.22,0.0001726,2]
[350125119,1737643860075,-1209.91,0.0001726,2]
[350125120,1737643860086,-2330.42,0.0001726,2]
[350125121,1737643860095,-1132.49,0.0001726,2]
[350125122,1737643860104,-934.4,0.0001726,2]
[350125123,1737643860115,-729.36,0.0001726,2]
[350125124,1737643860124,-500.0,0.0001726,2]
[350125125,1737643860133,-1227.33,0.0001726,2]
[350125126,1737643860142,-541.17,0.0001726,2]
[350125127,1737643860152,-500.0,0.0001726,2]
[350125128,1737643860162,-2386.51,0.0001726,2]
[350125129,1737643860171,-500.0,0.0001726,2]
[350125130,1737643860180,-500.0,0.0001726,2]
[350125131,1737643860189,-500.0,0.0001726,2]
[350125132,1737643860199,-982.9,0.0001726,2]
[350125133,1737643860209,-1424.77,0.0001726,2]
[350125134,1737643860219,-885.65,0.0001726,2]
[350125135,1737643860231,-500.0,0.0001726,2]
[350125136,1737643860241,-635.61,0.0001726,2]
[350125137,1737643860251,-500.0,0.0001726,2]
[350125138,1737643860261,-500.0,0.0001726,2]
[350125139,1737643860271,-500.0,0.0001726,2]
[350125140,1737643860280,-1713.0,0.0001726,2]
[350125141,1737643860290,-776.47,0.0001726,2]
[350125142,1737643860299,-1720.11,0.0001726,2]
[350125143,1737643860308,-936.39,0.0001726,2]
[350125144,1737643860318,-500.0,0.0001726,2]
[350125145,1737643860328,-754.05,0.0001726,2]
[350125146,1737643860337,-631.08,0.0001726,2]
[350125147,1737643860347,-949.85,0.0001726,2]
[350125148,1737643860356,-500.0,0.0001726,2]
[350125149,1737643860368,-1353.35,0.0001726,2]
[350125150,1737643860377,-500.0,0.0001726,2]
[350125151,1737643860387,-910.03,0.0001726,2]
[350125152,1737643860396,-500.0,0.0001726,2]
[350125153,1737643860406,-901.29,0.0001726,2]
[350125154,1737643860416,-500.0,0.0001726,2]
[350125155,1737643860425,-500.0,0.0001726,2]
[350125156,1737643860435,-907.47,0.0001726,2]
[350125157,1737643860445,-551.01,0.0001726,2]
[350125158,1737643860455,-500.0,0.0001726,2]
[350125159,1737643860464,-642.67,0.0001726,2]
[350125160,1737643860474,-1224.77,0.0001726,2]
[350125161,1737643860483,-500.0,0.0001726,2]
[350125162,1737643860493,-1274.42,0.0001726,2]
[350125163,1737643860502,-500.0,0.0001726,2]
[350125164,1737643860511,-2187.83,0.0001726,2]
[350125165,1737643860521,-500.0,0.0001726,2]
[350125166,1737643860530,-500.0,0.0001726,2]
[350125167,1737643860539,-500.0,0.0001726,2]
[350125168,1737643860550,-500.0,0.0001726,2]
[350125169,1737643860559,-500.0,0.0001726,2]
[350125170,1737643860568,-1035.7,0.0001726,2]
[350125171,1737643860578,-1126.99,0.0001726,2]
[350125172,1737643860587,-500.0,0.0001726,2]
[350125173,1737643860596,-1503.48,0.0001726,2]
[350125174,1737643860607,-500.0,0.0001726,2]
[350125175,1737643860618,-500.0,0.0001726,2]
[350125176,1737643860627,-291.69,0.0001726,2]
[350125177,1737643860636,-500.0,0.0001726,2]
[350125178,1737643860645,-464.0,0.0001726,2]
[350125179,1737643860654,-1486.75834485,0.0001726,2]
[350125180,1737643860663,-242.79,0.00017261,2]
[350125181,1737643860673,-167.4492191,0.00017269,2]
[350125182,1737643860681,-509.5144679,0.00017288,2]
[350125183,1737643860690,-7465.7021081,0.00017288,2]
[350125184,1737643860699,-2625.6265528,0.00017288,2]
[350125185,1737643860708,-500.0,0.00017299,2]
[350125186,1737643860718,-190908.66089537,0.000173,5]
[350125187,1737643860737,-1072.43007779,0.000173,5]
[350125188,1737643860749,-422.88,0.000173,5]
[350125189,1737643860768,-500.0,0.00016438,2]
[350125190,1737643860778,-875408.26450511,0.000173,5]
[350125191,1737643860791,-12552.3785242,0.000173,5]
[350125192,1737643860802,-8815.42984548,0.000173,5]
[350125193,1737643860821,-10570.05606079,0.000173,5]
[350125194,1737643860834,-157425.0,0.000173,5]
[350125195,1737643860845,-2276.06543725,0.000173,5]
[350125196,1737643860872,-500.0,0.00016438,2]
[350125197,1737643860882,-212.196127,0.0001706,2]
[350125198,1737643860891,-1406.003873,0.000173,5]
[350125199,1737643860913,-164.870123,0.00016438,2]
[350125200,1737643860924,-500.0,0.00016712,2]
[350125201,1737643860933,-4922.82247302,0.000173,5]
[350125202,1737643860945,-2536.7,0.000173,5]
[350125203,1737643860956,-8487.5385815,0.000173,5]
[350125204,1737643860972,-37677.04,0.000173,5]
[350125205,1737643860984,-1868.87696921,0.000173,5]
[350125206,1737643860995,-788.79988382,0.000173,5]
[350125207,1737643861006,-3270.16443001,0.000173,5]
[350125208,1737643861028,-10321.5495383,0.000173,5]
[350125209,1737643861040,-5261.10941904,0.000173,5]
[350125210,1737643861053,-17005.71206551,0.000173,5]
[350125211,1737643861065,-19979.69881026,0.000173,5]
[350125212,1737643861078,-700.24772771,0.000173,5]
[350125213,1737643861336,150.0,8.777e-05,2]
[350125219,1737644479298,-164.98,0.00012465,2]
[350125220,1737644479320,-316.32673038,0.00013534,2]
[350125221,1737644479342,-316.32673034,0.00013543,2]
[350125222,1737644479367,-316.32673034,0.00013551,2]
[350125223,1737644479389,-316.32673034,0.0001356,2]
[350125224,1737644479412,-316.32673034,0.00013569,2]
[350125225,1737644479434,-316.32673034,0.00013577,2]
[350125226,1737644479456,-316.32673034,0.00013586,2]
[350125227,1737644479482,-362.23,0.00014304,2]
[350125228,1737644479504,-334.76,0.00014401,3]
[350125229,1737644479528,-2137.22,0.00014655,2]
[350125230,1737644479550,-222.76,0.00014741,2]
[350125231,1737644479572,-250.0,0.00014893,2]
[350125232,1737644479598,-250.0,0.00014947,2]
[350125233,1737644479622,-1000.0,0.00015104,2]
[350125234,1737644479644,-200.0,0.00015104,2]
[350125235,1737644479668,-215.27725224,0.000152,2]
[350125236,1737644479691,-156.62,0.00015265,2]
[350125237,1737644479715,-156.62,0.00015281,2]
[350125238,1737644479737,-156.62,0.00015296,2]
[350125239,1737644479760,-156.62,0.00015311,2]
[350125240,1737644479783,-156.62,0.00015326,2]
[350125241,1737644479810,-156.62,0.00015342,2]
[350125242,1737644479832,-545.83,0.00015401,2]
[350125243,1737644479859,-222.76,0.00015478,2]
[350125244,1737644479882,-319.56,0.00015668,2]
[350125245,1737644479905,-345.98,0.00015765,2]
[350125246,1737644479929,-250.0,0.00015789,2]
[350125247,1737644479955,-300.0,0.00015789,2]
[350125248,1737644483375,316.32673034,0.00013594,2]
[350125249,1737644488567,316.32673034,0.00013603,2]
[350125250,1737644491412,-228.73,0.00015884,2]
[350125251,1737644491434,-1545.67625028,0.00015916,2]
[350125252,1737644491457,-362.23,0.00016091,2]
[350125253,1737644491478,-1545.67625029,0.00016138,2]
[350125254,1737644491500,-222.76,0.00016215,2]
[350125255,1737644491522,-716.39099,0.000163,2]
[350125256,1737644491545,-728.89252674,0.00016338,2]
[350125257,1737644491569,-747.80997825,0.00016338,2]
[350125258,1737644491591,-500.0,0.00016338,2]
[350125259,1737644491620,-5000.0,0.00016338,2]
[350125260,1737644491642,-1000.0,0.00016338,2]
[350125261,1737644491664,-1994.6198,0.00016338,2]
[350125262,1737644491686,-7926.9774,0.00016338,2]
[350125263,1737644491709,-797.6004,0.00016338,2]
[350125264,1737644491730,-2500.0,0.00016338,2]
[350125265,1737644491752,-280.05,0.00016428,2]
[350125266,1737644491775,-160.989,0.0001643,2]
[350125267,1737644491797,-500.0,0.00016438,2]
[350125268,1737644491818,-500.0,0.00016438,2]
[350125269,1737644491840,-327.50616834,0.00016438,2]
[350125270,1737644491866,-500.0,0.00016438,2]
[350125271,1737644491888,-500.0,0.00016438,2]
[350125272,1737644491910,-500.0,0.00016438,2]
[350125273,1737644491935,-500.0,0.00016438,2]
[350125274,1737644491957,-500.0,0.00016438,2]
[350125275,1737644491980,-500.0,0.00016438,2]
[350125276,1737644492002,-500.0,0.00016438,2]
[350125277,1737644492024,-505.61508323,0.00016438,2]
[350125278,1737644492046,-500.0,0.00016438,2]
[350125279,1737644492067,-501.64659035,0.00016438,2]
[350125280,1737644492090,-500.0,0.00016438,2]
[350125281,1737644492116,-500.0,0.00016438,2]
[350125282,1737644492137,-500.0,0.00016438,2]
[350125283,1737644492159,-500.0,0.00016438,2]
[350125284,1737644492180,-500.0,0.00016438,2]
[350125285,1737644492201,-566.20210403,0.00016438,2]
[350125286,1737644492223,-500.0,0.00016438,2]
[350125287,1737644492244,-633.50127237,0.00016438,2]
[350125288,1737644492265,-500.0,0.00016438,2]
[350125289,1737644492287,-500.0,0.00016438,2]
[350125290,1737644492308,-500.0,0.00016438,2]
[350125291,1737644492330,-500.0,0.00016438,2]
[350125292,1737644492352,-500.0,0.00016438,2]
[350125293,1737644492379,-506.85197881,0.00016438,2]
[350125294,1737644492400,-500.0,0.00016438,2]
[350125295,1737644492424,-500.0,0.00016438,2]
[350125296,1737644492446,-500.0,0.00016438,2]
[350125297,1737644492471,-479.66805175,0.00016438,2]
[350125298,1737644492494,-221.60555751,0.00016438,2]
[350125299,1737644492516,-500.0,0.00016438,2]
[350125300,1737644492540,-500.0,0.00016438,2]
[350125301,1737644492562,-500.0,0.00016438,2]
[350125302,1737644492584,-500.0,0.00016438,2]
[350125303,1737644492608,-500.0,0.00016438,2]
[350125304,1737644492634,-500.0,0.00016438,2]
[350125305,1737644492657,-500.0,0.00016438,2]
[350125306,1737644492679,-500.0,0.00016438,2]
[350125307,1737644492701,-562.5781587,0.00016438,2]
[350125308,1737644492723,-500.0,0.00016438,2]
[350125309,1737644492744,-500.0,0.00016438,2]
[350125310,1737644492765,-500.0,0.00016438,2]
[350125311,1737644492787,-500.0,0.00016438,2]
[350125312,1737644492809,-500.0,0.00016438,2]
[350125313,1737644492831,-500.0,0.00016438,2]
[350125314,1737644492853,-500.0,0.00016438,2]
[350125315,1737644492880,-500.0,0.00016438,2]
[350125316,1737644492903,-500.0,0.00016438,2]
[350125317,1737644492924,-500.0,0.00016438,2]
[350125318,1737644492948,-500.0,0.00016438,2]
[350125319,1737644492970,-500.0,0.00016438,2]
[350125320,1737644492992,-500.0,0.00016438,2]
[350125321,1737644493014,-500.0,0.00016438,2]
[350125322,1737644493037,-500.0,0.00016438,2]
[350125323,1737644493061,-500.0,0.00016438,2]
[350125324,1737644493084,-500.0,0.00016438,2]
[350125325,1737644493106,-500.0,0.00016438,2]
[350125326,1737644493132,-500.0,0.00016438,2]
[350125327,1737644493155,-500.0,0.00016438,2]
[350125328,1737644493179,-630.71,0.00016438,2]
[350125329,1737644493203,-517.39516647,0.00016438,2]
[350125330,1737644493227,-500.0,0.00016438,2]
[350125331,1737644493251,-500.0,0.00016438,2]
[350125332,1737644493274,-557.07,0.00016438,2]
[350125333,1737644493296,-113.22944754,0.00016438,2]
[350125334,1737644668389,312.48,0.00015,10]
[350125335,1737644758728,207.11,0.00016658,30]
[350125336,1737644957148,-549.26320593,0.00013776,2]
[350125351,1737645032436,-624.82679407,0.00013776,2]
[350125352,1737645032446,-2411.92020593,0.000152,5]
[350125353,1737645032458,-2737.07979407,0.000152,5]
[350125354,1737645032468,-1199.87467513,0.000153,2]
[350125355,1737645032478,-200.0,0.0001557,2]
[350125356,1737645032487,-377.53,0.00015594,2]
[350125357,1737645032497,-250.0,0.00015594,2]
[350125358,1737645032506,-865.79,0.00015615,2]
[350125359,1737645032515,-8399.53,0.00015636,2]
[350125360,1737645032524,-171.2,0.00015657,2]
[350125361,1737645032534,-1322.68,0.00015694,2]
[350125362,1737645032543,-229.21,0.00015712,2]
[350125363,1737645032561,-1272.0,0.00016,2]
[350125364,1737645032572,-1174.09,0.0001604,2]
[350125365,1737645032584,-212.0,0.00016337,2]
[350125366,1737645032594,-673.02898047,0.00016338,2]
[350125367,1737645032604,-221.1964,0.00016338,2]
[350125368,1737645032613,-5000.0,0.00016338,2]
[350125369,1737645032623,-1000.0,0.00016338,2]
[350125370,1737645032632,-508.15,0.00016338,2]
[350125371,1737645032642,-1310.8171,0.00016338,2]
[350125372,1737645032652,-500.0,0.00016438,2]
[350125373,1737645032665,-500.0,0.00016438,2]
[350125374,1737645032675,-500.0,0.00016438,2]
[350125375,1737645032684,-500.0,0.00016438,2]
[350125376,1737645032694,-500.0,0.00016438,7]
[350125377,1737645032703,-500.0,0.00016438,2]
[350125378,1737645032713,-500.32792647,0.00016438,2]
[350125379,1737645032723,-221.26292219,0.00016438,2]
[350125380,1737645032733,-313.23707781,0.00016438,2]
[350125381,1737645032743,-500.0,0.00016438,2]
[350125382,1737645032753,-510.94447008,0.00016438,2]
[350125383,1737645032763,-500.0,0.00016438,2]
[350125384,1737645032774,-500.0,0.00016438,2]
[350125385,1737645032784,-500.0,0.00016438,2]
[350125386,1737645032794,-500.0,0.00016438,2]
[350125387,1737645032810,-500.0,0.00016438,2]
[350125388,1737645032820,-500.0,0.00016438,2]
[350125389,1737645032829,-500.0,0.00016438,2]
[350125390,1737645032839,-500.0,0.00016438,2]
[350125391,1737645032849,-500.0,0.00016438,2]
[350125392,1737645032858,-500.0,0.00016438,2]
[350125393,1737645032868,-500.0,0.00016438,2]
[350125394,1737645032878,-500.0,0.00016438,2]
[350125395,1737645032888,-500.0,0.00016438,2]
[350125396,1737645032897,-500.0,0.00016438,2]
[350125397,1737645032906,-500.0,0.00016438,2]
[350125398,1737645032915,-500.0,0.00016438,2]
[350125399,1737645032924,-500.0,0.00016438,2]
[350125400,1737645032933,-500.0,0.00016438,2]
[350125401,1737645032943,-500.0,0.00016438,2]
[350125402,1737645032952,-500.0,0.00016438,2]
[350125403,1737645032961,-500.0,0.00016438,2]
[350125404,1737645032970,-500.0,0.00016438,2]
[350125405,1737645032980,-500.0,0.00016438,2]
[350125406,1737645032989,-300.0,0.00016438,2]
[350125408,1737645032999,-500.0,0.00016438,2]
[350125410,1737645033008,-275.83461059,0.00016438,2]
[350125412,1737645033017,-316.28544033,0.00016438,2]
[350125414,1737645033027,-500.0,0.00016438,2]
[350125416,1737645033036,-500.0,0.00016438,2]
[350125418,1737645033053,-500.0,0.00016438,2]
[350125420,1737645033063,-500.0,0.00016438,2]
[350125422,1737645033074,-500.0,0.00016438,2]
[350125424,1737645033087,-618.3115715,0.00016438,2]
[350125426,1737645033098,-500.0,0.00016438,2]
[350125428,1737645033108,-500.0,0.00016438,2]
[350125430,1737645033119,-500.0,0.00016438,2]
[350125432,1737645033130,-500.0,0.00016438,2]
[350125433,1737645033139,-419.46996626,0.00016438,2]
[350125435,1737645033149,-500.0,0.00016438,2]
[350125436,1737645033159,-500.0,0.00016438,2]
[350125438,1737645033170,-500.0,0.00016438,2]
[350125440,1737645033180,-500.0,0.00016438,2]
[350125442,1737645033190,-500.0,0.00016438,2]
[350125444,1737645033200,-500.0,0.00016438,2]
[350125446,1737645033210,-500.0,0.00016438,2]
[350125448,1737645033220,-500.0,0.00016438,2]
[350125451,1737645033229,-500.0,0.00016438,2]
[350125454,1737645033239,-500.0,0.00016438,2]
[350125457,1737645033249,-500.0,0.00016438,2]
[350125460,1737645033258,-500.0,0.00016438,2]
[350125463,1737645033268,-500.0,0.00016438,2]
[350125465,1737645033278,-500.0,0.00016438,2]
[350125467,1737645033288,-500.0,0.00016438,2]
[350125469,1737645033302,-500.0,0.00016438,2]
[350125471,1737645033312,-500.0,0.00016438,2]
[350125473,1737645033322,-500.0,0.00016438,2]
[350125475,1737645033332,-500.0,0.00016438,2]
[350125477,1737645033341,-500.0,0.00016438,2]
[350125479,1737645033352,-500.0,0.00016438,2]
[350125481,1737645033361,-500.0,0.00016438,2]
[350125482,1737645033371,-500.0,0.00016438,2]
[350125483,1737645033382,-728.78,0.00016438,2]
[350125484,1737645033393,-500.0,0.00016438,2]
[350125485,1737645033402,-500.0,0.00016438,2]
[350125486,1737645033412,-500.0,0.00016438,2]
[350125487,1737645033421,-500.0,0.00016438,2]
[350125488,1737645033431,-500.0,0.00016438,2]
[350125489,1737645033442,-500.0,0.00016438,2]
[350125490,1737645033451,-500.0,0.00016438,2]
[350125491,1737645033461,-500.0,0.00016438,2]
[350125492,1737645033472,-500.0,0.00016438,2]
[350125494,1737645033482,-500.0,0.00016438,2]
[350125496,1737645033492,-500.0,0.00016438,2]
[350125498,1737645033502,-500.0,0.00016438,2]
[350125500,1737645033512,-500.0,0.00016438,2]
[350125502,1737645033522,-500.0,0.00016438,2]
[350125504,1737645033532,-628.80243118,0.00016438,2]
[350125506,1737645033541,-500.0,0.00016438,2]
[350125508,1737645033556,-500.0,0.00016438,2]
[350125510,1737645033566,-645.04645593,0.00016438,2]
[350125512,1737645033575,-500.0,0.00016438,2]
[350125513,1737645033587,-500.0,0.00016438,2]
[350125515,1737645033597,-500.0,0.00016438,2]
[350125517,1737645033607,-500.55822954,0.00016438,2]
[350125519,1737645033617,-191.12063825,0.00016438,2]
[350125521,1737645033628,-500.0,0.00016438,2]
[350125523,1737645033637,-500.0,0.00016438,2]
[350125525,1737645033647,-500.0,0.00016438,2]
[350125527,1737645033658,-500.0,0.00016438,2]
[350125529,1737645033669,-500.0,0.00016438,2]
[350125531,1737645033679,-500.0,0.00016438,2]
[350125533,1737645033690,-500.0,0.00016438,2]
[350125535,1737645033700,-516.58264523,0.00016438,2]
[350125537,1737645033710,-500.0,0.00016438,2]
[350125539,1737645033719,-500.0,0.00016438,2]
[350125541,1737645033729,-500.0,0.00016438,2]
[350125543,1737645033738,-500.0,0.00016438,2]
[350125545,1737645033748,-500.0,0.00016438,2]
[350125547,1737645033758,-561.4,0.00016438,2]
[350125549,1737645033768,-500.0,0.00016438,2]
[350125551,1737645033778,-500.0,0.00016438,2]
[350125553,1737645033790,-500.0,0.00016438,2]
[350125554,1737645033806,-500.0,0.00016438,2]
[350125556,1737645033817,-500.0,0.00016438,2]
[350125558,1737645033828,-534.51993967,0.00016438,2]
[350125561,1737645033838,-500.0,0.00016438,2]
[350125562,1737645033849,-500.0,0.00016438,2]
[350125565,1737645033859,-500.0,0.00016438,2]
[350125567,1737645033869,-500.0,0.00016438,2]